bitfinex/quotes_SOLUSD_20250413
["timestamp","ask_amount","ask_price","bid_price","bid_amount"]
[1744584751438,19.32930993,127.42,127.35,18.90622522]
[1744584751439,0.42648471,127.4,127.35,18.90622522]
[1744584751633,13.05090993,127.38,127.3,9.4433]
[1744584751841,12.62442522,127.37,127.32,12.62442522]
[1744584752059,14.58780993,127.38,127.33,12.62442522]
[1744584753661,14.58780993,127.38,127.33,18.90682522]
[1744584754164,20.86830993,127.38,127.33,18.90682522]
[1744584755860,1.5369,127.38,127.35,12.62442522]
[1744584757650,1.5369,127.38,127.35,18.90612522]
[1744584760262,1.5369,127.38,127.34,12.62442522]
[1744584760446,14.16132522,127.38,127.33,12.62442522]
[1744584760947,14.16132522,127.38,127.31,21.9934]
[1744584761148,1.5369,127.38,127.33,12.62442522]
[1744584761761,1.5369,127.38,127.34,6.2823]
[1744584762542,7.8174,127.38,127.33,18.90702522]
[1744584762742,1.5369,127.38,127.34,12.62442522]
[1744584763868,6.0536,127.41,127.37,12.62442522]
[1744584764045,6.0536,127.41,127.38,12.62442522]
[1744584764245,6.0536,127.41,127.37,12.62442522]
[1744584766174,6.0536,127.41,127.37,18.90492522]
[1744584769681,13.05090993,127.4,127.35,18.90632522]
[1744584769866,12.62442522,127.39,127.35,6.2819]
[1744584770063,12.62442522,127.39,127.34,18.90652522]
[1744584770263,13.05090993,127.38,127.31,6.2838]
[1744584770466,13.05090993,127.38,127.32,12.62442522]
[1744584770467,6.3416,127.36,127.32,12.62442522]
[1744584771275,18.96602522,127.36,127.3,6.2843]
[1744584771472,6.3416,127.36,127.31,12.62442522]
[1744584771776,6.3416,127.36,127.32,12.62442522]
[1744584772454,6.3416,127.36,127.32,18.90752522]
[1744584773280,6.3416,127.36,127.33,12.62442522]
[1744584773452,6.3416,127.36,127.32,18.90752522]
[1744584776579,6.3416,127.36,127.33,12.62442522]
[1744584777177,6.3416,127.36,127.32,12.62442522]
[1744584779281,6.3416,127.36,127.33,6.2828]
[1744584779663,18.96602522,127.36,127.31,18.90822522]
[1744584780365,6.3416,127.36,127.31,18.90822522]
[1744584780682,1.6406,127.37,127.35,12.62442522]
[1744584780882,6.3416,127.39,127.36,12.62442522]
[1744584781079,6.3416,127.39,127.37,12.62442522]
[1744584781286,6.3416,127.39,127.37,8.09600192]
[1744584781790,1.6406,127.4,127.38,14.37640192]
[1744584782863,6.2954,127.42,127.39,8.09600192]
[1744584783068,6.2954,127.42,127.38,6.2804]
[1744584783069,1.658,127.43,127.4,8.09600192]
[1744584783270,1.658,127.43,127.4,12.6437167]
[1744584783796,1.658,127.43,127.4,18.9229167]
[1744584784990,1.658,127.43,127.38,12.6437167]
[1744584784991,14.3017167,127.43,127.38,12.6437167]
[1744584785761,1.658,127.43,127.39,12.6437167]
[1744584786062,1.658,127.43,127.41,12.6437167]
[1744584786565,1.658,127.43,127.4,12.6437167]
[1744584786764,14.3017167,127.43,127.38,12.6437167]
[1744584786983,20.5797167,127.43,127.38,12.6437167]
[1744584787195,14.3017167,127.43,127.38,12.6437167]
[1744584788191,14.3017167,127.43,127.39,6.2799]
[1744584789798,1.658,127.43,127.39,6.2799]
[1744584790092,1.658,127.43,127.39,18.9236167]
[1744584791198,7.936,127.43,127.39,12.6437167]
[1744584791487,7.936,127.43,127.38,18.9239167]
[1744584792676,0.42648471,127.42,127.38,18.9239167]
[1744584792877,6.70488471,127.42,127.38,12.6437167]
[1744584793085,6.70488471,127.42,127.37,18.9244167]
[1744584793284,0.42648471,127.42,127.37,18.9244167]
[1744584793598,0.42648471,127.42,127.38,12.6437167]
[1744584794699,1.658,127.43,127.39,12.6437167]
[1744584795080,1.658,127.43,127.41,12.6437167]
[1744584795397,0.03,127.44,127.41,12.6437167]
[1744584796598,0.03,127.44,127.41,18.9223167]
[1744584797278,0.03,127.44,127.42,12.6437167]
[1744584798701,0.03,127.44,127.42,18.9219167]
[1744584798874,0.03,127.44,127.42,6.2782]
[1744584799075,12.6437167,127.43,127.38,6.2804]
[1744584799305,12.6437167,127.43,127.38,18.9241167]
[1744584799602,0.28432314,127.43,127.39,12.6437167]
[1744584800207,0.45648471,127.44,127.4,12.6437167]
[1744584800804,13.10020141,127.44,127.39,12.6437167]
[1744584800983,0.45648471,127.44,127.4,12.6437167]
[1744584801404,19.37770141,127.44,127.39,12.6437167]
[1744584801898,12.6437167,127.43,127.38,12.6437167]
[1744584802091,0.42648471,127.42,127.38,12.6437167]
[1744584802696,0.42648471,127.42,127.37,12.6437167]
[1744584802902,0.42648471,127.42,127.38,6.2804]
[1744584803401,1.94848471,127.42,127.38,6.2804]
[1744584804097,8.22688471,127.42,127.38,6.2804]
[1744584804294,8.22688471,127.42,127.37,12.6437167]
[1744584804295,8.22688471,127.42,127.37,18.9244167]
[1744584804498,20.87060141,127.42,127.37,18.9244167]
[1744584806806,14.59220141,127.42,127.37,18.9244167]
[1744584807005,1.94848471,127.42,127.38,12.6437167]
[1744584807509,8.22688471,127.42,127.38,12.6437167]
[1744584808014,1.94848471,127.42,127.38,12.6437167]
[1744584808306,8.22698471,127.42,127.38,12.6437167]
[1744584808608,20.87070141,127.42,127.37,18.9244167]
[1744584808908,1.94848471,127.42,127.38,12.6437167]
[1744584809506,8.22698471,127.42,127.38,12.6437167]
[1744584810611,8.22698471,127.42,127.37,12.6437167]
[1744584811420,8.22698471,127.42,127.37,8.09554855]
[1744584811998,8.22698471,127.42,127.38,8.09554855]
[1744584812199,1.94848471,127.42,127.38,8.09554855]
[1744584812694,1.94848471,127.42,127.38,14.37564855]
[1744584812902,8.22698471,127.42,127.37,14.37624855]
[1744584813514,8.22698471,127.42,127.38,8.09554855]
[1744584816223,1.94848471,127.42,127.38,14.37594855]
[1744584817119,8.22698471,127.42,127.38,14.37594855]
[1744584818707,8.22698471,127.42,127.38,8.09554855]
[1744584819219,0.42648471,127.36,127.3,14.37984855]
[1744584819419,8.09554855,127.35,127.3,14.37984855]
[1744584819998,0.42648471,127.34,127.29,16.54332471]
[1744584820199,0.42648471,127.33,127.29,8.15854855]
[1744584820499,0.42648471,127.34,127.3,8.09554855]
[1744584821095,103.67164855,127.36,127.31,8.09554855]
[1744584821303,0.42648471,127.35,127.31,12.66270204]
[1744584822423,0.42648471,127.35,127.31,18.94640204]
[1744584823418,6.3945,127.36,127.33,12.66270204]
[1744584823620,9.4264,127.37,127.33,12.66270204]
[1744584823826,6.3945,127.39,127.35,12.66270204]
[1744584824513,6.3945,127.39,127.35,18.94430204]
[1744584824916,84.68856157,127.4,127.37,12.66270204]
[1744584825627,84.5464,127.4,127.37,12.66270204]
[1744584825813,14.31666157,127.42,127.38,12.66270204]
[1744584826920,14.31666157,127.42,127.38,18.94300204]
[1744584827116,14.1745,127.42,127.38,18.94300204]
[1744584837048,6.3945,127.42,127.38,18.94300204]
[1744584837224,1.6464,127.43,127.39,12.66270204]
[1744584837947,128.72643561,127.44,127.4,12.66270204]
[1744584837948,0.03,127.44,127.4,12.66270204]
[1744584838123,0.03,127.44,127.36,12.66270204]
[1744584838124,0.03,127.44,127.42,12.66270204]
[1744584838732,0.03,127.44,127.41,18.94130204]
[1744584840336,0.03,127.44,127.42,12.66270204]
[1744584842355,0.03,127.44,127.43,18.94060204]
[1744584843238,0.03,127.44,127.43,14.36690831]
[1744584849772,0.03,127.44,127.42,14.36730831]
[1744584850265,0.03,127.44,127.43,8.08900831]
[1744584851736,0.03,127.44,127.43,14.36690831]
[1744584853657,0.03,127.45,127.43,33.01655717]
[1744584853860,0.03,127.45,127.44,8.08900831]
[1744584855574,0.03,127.45,127.44,14.36640831]
[1744584856063,0.03,127.47,127.44,63.99694155]
[1744584856269,0.03,127.47,127.46,8.08900831]
[1744584857467,0.03,127.47,127.46,14.36540831]
[1744584865786,0.03,127.47,127.41,6.2789]
[1744584865958,8.54549302,127.47,127.42,8.08900831]
[1744584866858,8.54549302,127.47,127.41,14.36790831]
[1744584867756,8.08900831,127.46,127.41,14.36790831]
[1744584868180,6.73278471,127.47,127.4,14.36820831]
[1744584868181,8.08900831,127.45,127.4,14.36820831]
[1744584868360,8.08900831,127.44,127.39,6.2797]
[1744584868564,8.08900831,127.43,127.39,6.2797]
[1744584868774,14.49420831,127.44,127.39,14.36870831]
[1744584869276,6.4052,127.44,127.4,8.08900831]
[1744584869863,6.4052,127.44,127.4,14.36800831]
[1744584875480,8.51549302,127.43,127.38,8.08900831]
[1744584875680,10.03729302,127.43,127.38,8.08900831]
[1744584876584,82.9,127.46,127.42,8.08900831]
[1744584876769,16.26080831,127.47,127.42,8.08900831]
[1744584877172,8.08900831,127.46,127.41,8.08900831]
[1744584877779,14.36550831,127.46,127.41,14.36760831]
[1744584881465,8.08900831,127.46,127.41,14.36760831]
[1744584881781,16.26080831,127.47,127.42,8.08900831]
[1744584882782,14.4477,127.47,127.42,14.36710831]
[1744584882968,22.53670831,127.47,127.42,14.36710831]
[1744584883566,22.53670831,127.47,127.42,6.2781]
[1744584886087,1.5518,127.47,127.43,8.08900831]
[1744584886476,15.91680831,127.47,127.42,14.36710831]
[1744584887195,15.91680831,127.47,127.42,6.2781]
[1744584888096,7.8278,127.47,127.42,6.2781]
[1744584888270,15.91680831,127.47,127.42,6.2781]
[1744584891096,8.08900831,127.45,127.4,8.08900831]
[1744584891298,8.08900831,127.45,127.39,6.2799]
[1744584891299,8.51549302,127.44,127.39,6.2799]
[1744584891498,8.23116988,127.45,127.39,14.36890831]
[1744584892493,97.54983145,127.46,127.4,8.08900831]
[1744584892698,97.54983145,127.46,127.39,21.9797]
[1744584892699,91.27333145,127.46,127.41,8.08900831]
[1744584893005,97.54983145,127.46,127.41,8.08900831]
[1744584894202,97.54983145,127.46,127.41,14.36760831]
[1744584895586,97.54983145,127.46,127.4,8.08900831]
[1744584896015,8.08900831,127.45,127.39,8.08900831]
[1744584896183,8.08900831,127.44,127.39,8.08900831]
[1744584896504,8.51549302,127.45,127.39,8.08900831]
[1744584896694,8.08900831,127.44,127.37,21.9831]
[1744584896893,8.08900831,127.43,127.38,8.08900831]
[1744584897098,8.08900831,127.43,127.37,21.9831]
[1744584897300,8.08900831,127.41,127.37,6.2809]
[1744584897501,1.6031,127.42,127.37,14.36990831]
[1744584897694,9.69210831,127.42,127.37,14.36990831]
[1744584898001,15.97050831,127.42,127.37,14.36990831]
[1744584898593,9.69210831,127.42,127.37,14.36990831]
[1744584899100,6.4928,127.43,127.39,8.08900831]
[1744584899919,6.4928,127.43,127.39,14.36860831]
[1744584901803,1.6031,127.45,127.41,8.08900831]
[1744584904304,1.6031,127.45,127.41,14.36750831]
[1744584907212,8.08900831,127.43,127.38,14.36940831]
[1744584907516,8.51549302,127.44,127.39,8.08900831]
[1744584909006,8.08900831,127.44,127.4,6.2794]
[1744584909195,15.96920831,127.45,127.4,14.36840831]
[1744584909796,7.8802,127.45,127.4,14.36840831]
[1744584910107,1.6031,127.45,127.41,8.08900831]
[1744584911215,1.6031,127.45,127.41,14.36760831]
[1744584912317,97.48180831,127.46,127.41,14.36760831]
[1744584913806,82.9,127.46,127.42,8.08900831]
[1744584914194,82.9,127.46,127.41,14.36760831]
[1744584915016,90.98900831,127.46,127.41,14.36760831]
[1744584915193,97.26550831,127.46,127.41,14.36760831]
[1744584915714,14.36550831,127.46,127.41,14.36760831]
[1744584916209,14.36550831,127.46,127.39,17.2371]
[1744584916210,0.42648471,127.45,127.38,14.36940831]
[1744584916397,8.08900831,127.42,127.38,6.2804]
[1744584916792,9.74080831,127.43,127.38,6.2804]
[1744584917111,9.74080831,127.43,127.38,14.36940831]
[1744584917308,9.74080831,127.43,127.38,6.2804]
[1744584918311,16.01880831,127.43,127.38,6.2804]
[1744584920811,9.74080831,127.43,127.38,14.36940831]
[1744584921025,16.01870831,127.43,127.38,6.2804]
[1744584921388,8.08900831,127.42,127.38,6.2804]
[1744584924122,14.36740831,127.42,127.37,14.36970831]
[1744584924410,6.2784,127.42,127.37,14.36970831]
[1744584924621,14.36740831,127.42,127.37,14.36970831]
[1744584926597,9.74080831,127.43,127.38,8.08900831]
[1744584926795,1.6518,127.43,127.39,8.08900831]
[1744584927203,9.74080831,127.43,127.38,8.08900831]
[1744584928620,9.74080831,127.43,127.39,6.2799]
[1744584929805,16.01870831,127.43,127.39,6.2799]
[1744584930006,15.01870831,127.43,127.38,6.2804]
[1744584930225,8.08900831,127.42,127.37,6.2806]
[1744584930430,8.08900831,127.42,127.37,14.36960831]
[1744584931226,14.36760831,127.42,127.37,14.36960831]
[1744584932518,8.08900831,127.41,127.37,6.2806]
[1744584932708,8.08900831,127.41,127.36,6.3442]
[1744584933539,8.08900831,127.41,127.36,14.43320831]
[1744584936228,7.74,127.42,127.38,8.08900831]
[1744584936438,7.74,127.42,127.39,8.08900831]
[1744584936934,7.74,127.42,127.39,14.36880831]
[1744584937521,89.83,127.43,127.39,14.36880831]
[1744584943943,6.2467,127.44,127.39,14.36880831]
[1744584944124,7.74,127.45,127.42,8.08900831]
[1744584945224,7.74,127.45,127.42,14.36740831]
[1744584945726,7.74,127.45,127.39,15.6998]
[1744584945727,14.0169,127.45,127.41,8.08900831]
[1744584945932,22.10590831,127.45,127.4,8.08900831]
[1744584947541,22.10590831,127.45,127.4,14.36840831]
[1744584948567,8.08900831,127.43,127.38,14.36940831]
[1744584949055,8.08900831,127.41,127.36,0.063]
[1744584949350,8.08900831,127.41,127.36,8.15200831]
[1744584950450,14.36790831,127.41,127.36,14.43310831]
[1744584953152,8.08900831,127.41,127.36,14.43310831]
[1744584953452,20.58410831,127.42,127.37,8.08900831]
[1744584954550,20.58410831,127.42,127.37,14.36950831]
[1744584955127,8.08900831,127.41,127.37,6.2805]
[1744584955336,8.08900831,127.41,127.36,14.43310831]
[1744584955540,9.67030831,127.41,127.36,14.43310831]
[1744584955828,8.08900831,127.39,127.36,0.063]
[1744584956024,8.08900831,127.38,127.36,0.063]
[1744584956654,14.36960831,127.38,127.36,0.063]
[1744584957054,8.08900831,127.38,127.36,0.063]
[1744584957350,0.42648471,127.38,127.36,0.063]
[1744584958451,15.82900831,127.4,127.36,0.063]
[1744584958655,7.74,127.4,127.36,8.15200831]
[1744584958842,82.9,127.41,127.38,8.08900831]
[1744584960432,7.74,127.44,127.41,6.2789]
[1744584961657,22.10660831,127.44,127.39,8.08900831]
[1744584961953,8.08900831,127.43,127.38,8.08900831]
[1744584962560,8.08900831,127.43,127.39,6.2799]
[1744584962745,0.42648471,127.43,127.39,14.36890831]
[1744584962944,8.51549302,127.43,127.38,14.36910831]
[1744584963578,8.51549302,127.43,127.38,6.2801]
[1744584963748,8.51549302,127.43,127.38,14.36910831]
[1744584970473,14.79339302,127.43,127.38,14.36910831]
[1744584973776,8.51549302,127.43,127.38,14.36910831]
[1744584973966,0.42648471,127.43,127.38,14.36910831]
[1744584975477,8.51549302,127.43,127.38,14.36910831]
[1744584980584,13.9976,127.44,127.41,8.08900831]
[1744584980585,7.72,127.44,127.41,8.08900831]
[1744584980873,7.72,127.44,127.42,8.08900831]
[1744584981449,7.72,127.44,127.41,8.08900831]
[1744584982278,7.72,127.44,127.4,7.8359]
[1744584982482,15.80900831,127.44,127.4,7.8359]
[1744584984468,22.08640831,127.44,127.4,7.8359]
[1744584984977,7.72,127.44,127.4,15.92490831]
[1744584985169,7.72,127.44,127.41,8.08900831]
[1744584985368,7.72,127.44,127.4,15.92490831]
[1744584985574,7.72,127.44,127.37,6.2809]
[1744584985575,8.08900831,127.42,127.37,6.2809]
[1744584985777,0.42648471,127.43,127.36,0.063]
[1744584985778,8.08900831,127.38,127.36,0.063]
[1744584985974,27.16514188,127.37,127.36,0.063]
[1744584986281,44.79181043,127.35,127.34,0.063]
[1744584986586,25.35843357,127.34,127.33,0.063]
[1744584986778,33.44744188,127.34,127.33,0.063]
[1744584987780,82.9,127.34,127.33,0.063]
[1744584987983,90.98900831,127.34,127.33,0.063]
[1744584989062,82.9,127.34,127.33,0.063]
[1744584991358,90.98900831,127.34,127.33,0.063]
[1744584991861,33.44744188,127.34,127.33,0.063]
[1744584992587,35.04514188,127.34,127.33,0.063]
[1744584994570,27.16514188,127.34,127.33,0.063]
[1744584994885,8.51549302,127.34,127.33,0.063]
[1744584995383,26.34964886,127.35,127.33,0.063]
[1744584995384,15.78900831,127.35,127.33,0.063]
[1744584997189,20.36334078,127.35,127.33,0.063]
[1744584999798,7.7,127.35,127.33,0.063]
[1744585001116,7.7,127.35,127.33,12.72634078]
[1744585001472,82.9,127.37,127.33,12.72634078]
[1744585001797,95.56334078,127.37,127.33,0.063]
[1744585001978,95.56334078,127.37,127.33,6.3458]
[1744585006000,20.3451,127.39,127.35,12.66334078]
[1744585006001,7.7,127.39,127.35,12.66334078]
[1744585006172,7.7,127.39,127.36,12.66334078]
[1744585006379,0.45648471,127.41,127.36,12.66334078]
[1744585006582,0.03,127.41,127.37,12.66334078]
[1744585007609,0.03,127.41,127.38,6.2804]
[1744585008709,13.11982549,127.41,127.37,6.2807]
[1744585009806,0.03,127.41,127.37,18.94404078]
[1744585010511,0.03,127.41,127.38,12.66334078]
[1744585011806,0.03,127.41,127.39,6.2799]
[1744585014307,0.03,127.41,127.38,6.2804]
[1744585019214,0.03,127.41,127.39,8.09268254]
[1744585020218,0.03,127.41,127.4,8.09268254]
[1744585020698,0.03,127.41,127.4,14.37208254]
[1744585021608,0.03,127.41,127.4,13.87208254]
[1744585021820,0.03,127.41,127.4,6.2794]
[1744585022010,0.03,127.41,127.4,14.37208254]
[1744585023699,96.9061,127.47,127.41,8.193]
[1744585023700,0.03,127.47,127.41,8.193]
[1744585023909,0.03,127.47,127.44,8.09268254]
[1744585024097,0.03,127.47,127.43,8.09268254]
[1744585024614,8.09268254,127.45,127.41,1.53]
[1744585024817,8.09268254,127.46,127.41,9.62268254]
[1744585025823,14.39868254,127.47,127.42,14.37108254]
[1744585027122,8.12268254,127.47,127.42,14.37108254]
[1744585028699,0.03,127.47,127.45,8.09268254]
[1744585030019,0.03,127.47,127.46,8.09268254]
[1744585030727,0.03,127.47,127.46,6.2764]
[1744585031432,0.03,127.47,127.46,14.36908254]
[1744585034922,0.03,127.47,127.44,21.9704]
[1744585035129,0.03,127.47,127.46,8.09268254]
[1744585035898,0.03,127.47,127.44,6.2774]
[1744585036097,0.03,127.47,127.44,14.37008254]
[1744585037933,0.03,127.47,127.44,6.2774]
[1744585038124,0.03,127.47,127.44,14.37008254]
[1744585039730,0.03,127.47,127.41,35.87574886]
[1744585039731,8.12268254,127.47,127.43,6.2777]
[1744585039924,8.09268254,127.46,127.43,6.2777]
[1744585040336,8.12268254,127.47,127.43,6.2777]
[1744585041229,0.03,127.47,127.44,8.09268254]
[1744585041433,0.03,127.47,127.43,30.06518254]
[1744585041633,0.03,127.47,127.43,14.37038254]
[1744585043339,0.03,127.47,127.44,8.09268254]
[1744585044734,0.03,127.47,127.45,8.09268254]
[1744585045541,0.03,127.47,127.46,6.2764]
[1744585045841,0.03,127.47,127.46,14.36908254]
[1744585047337,0.03,127.47,127.46,6.2764]
[1744585048534,0.03,127.47,127.46,8.09268254]
[1744585049822,0.03,127.47,127.43,14.37058254]
[1744585050035,8.54916725,127.47,127.42,6.2782]
[1744585050337,8.09268254,127.46,127.41,15.90128254]
[1744585050536,14.36938254,127.46,127.41,15.90128254]
[1744585053139,8.09268254,127.44,127.4,8.09268254]
[1744585053348,8.09268254,127.43,127.38,14.37308254]
[1744585054033,8.09268254,127.42,127.38,6.2804]
[1744585055035,14.36988254,127.45,127.4,8.09268254]
[1744585055235,14.36988254,127.45,127.41,6.2789]
[1744585055423,8.09268254,127.45,127.41,6.2789]
[1744585055940,8.09268254,127.43,127.39,8.09268254]
[1744585056346,8.09268254,127.43,127.38,14.37308254]
[1744585056946,8.09268254,127.44,127.39,8.09268254]
[1744585057149,14.37038254,127.44,127.39,14.37238254]
[1744585058547,8.09268254,127.45,127.4,8.09268254]
[1744585058854,91.41916725,127.46,127.4,8.09268254]
[1744585059040,23.92378254,127.47,127.42,8.09268254]
[1744585059219,15.8311,127.47,127.43,8.09268254]
[1744585059421,23.92378254,127.47,127.42,8.09268254]
[1744585059647,8.09268254,127.46,127.41,8.09268254]
[1744585059848,30.19968254,127.47,127.42,8.09268254]
[1744585060642,30.19968254,127.47,127.43,6.2779]
[1744585060947,23.92378254,127.47,127.43,6.2779]
[1744585062353,8.09268254,127.46,127.42,6.2783]
[1744585063952,8.09268254,127.46,127.41,8.09268254]
[1744585064134,8.09268254,127.44,127.39,8.09268254]
[1744585064334,8.09268254,127.43,127.38,6.2804]
[1744585064518,8.09268254,127.41,127.38,6.2804]
[1744585064725,8.09268254,127.41,127.37,6.2807]
[1744585065132,8.09268254,127.4,127.36,6.2812]
[1744585066252,14.37208254,127.4,127.35,6.3446]
[1744585066466,8.09268254,127.39,127.35,0.063]
[1744585066847,8.09268254,127.39,127.35,6.3448]
[1744585067150,18.93356046,127.4,127.35,18.99886046]
[1744585067657,12.65406046,127.4,127.35,18.99886046]
[1744585068761,0.42648471,127.4,127.35,18.99886046]
[1744585068960,103.35706046,127.41,127.35,18.99886046]
[1744585069265,97.07796046,127.41,127.36,12.65406046]
[1744585070163,103.35686046,127.41,127.35,18.99886046]
[1744585071444,18.93356046,127.4,127.35,18.99886046]
[1744585073965,12.65406046,127.37,127.35,0.063]
[1744585074168,12.65406046,127.36,127.35,0.063]
[1744585075242,19.29786046,127.37,127.35,0.063]
[1744585075443,25.57876046,127.37,127.35,0.063]
[1744585077068,12.65406046,127.36,127.35,0.063]
[1744585078471,41.03649403,127.36,127.35,0.063]
[1744585078772,26.0,127.34,127.33,0.063]
[1744585079072,70.65629403,127.34,127.33,0.063]
[1744585082678,52.00664517,127.34,127.33,0.063]
[1744585086370,70.65629403,127.34,127.33,0.063]
[1744585087974,45.07613357,127.31,127.3,0.063]
[1744585088178,25.18293357,127.3,127.29,0.063]
[1744585088390,44.12129403,127.3,127.29,0.063]
[1744585091382,67.66129403,127.3,127.29,0.063]
[1744585091592,44.12129403,127.3,127.29,0.063]
[1744585091762,116.15299403,127.29,127.28,0.063]
[1744585092662,116.15299403,127.29,127.26,0.063]
[1744585092663,101.97613357,127.28,127.26,0.063]
[1744585092868,102.26634517,127.27,127.26,0.063]
[1744585093068,120.91599403,127.27,127.26,0.063]
[1744585093572,38.01599403,127.27,127.26,0.063]
[1744585093973,44.12279403,127.27,127.26,0.063]
[1744585094170,44.12279403,127.27,127.26,0.0001]
[1744585094375,19.07613357,127.26,127.23,0.063]
[1744585094682,39.41019403,127.26,127.23,0.063]
[1744585094856,45.69649403,127.26,127.23,0.063]
[1744585095387,44.79181043,127.23,127.21,0.063]
[1744585095699,25.18293357,127.22,127.2,0.063]
[1744585095862,134.96425449,127.21,127.2,0.063]
[1744585096062,122.31019403,127.21,127.2,0.063]
[1744585096781,128.59899403,127.21,127.2,0.063]
[1744585104982,132.66918983,127.21,127.2,0.063]
[1744585106289,49.76918983,127.21,127.2,0.063]
[1744585106865,12.79622203,127.17,127.16,0.063]
[1744585107180,31.73019403,127.17,127.16,0.063]
[1744585108190,38.02089403,127.17,127.16,0.063]
[1744585110885,44.64964886,127.15,127.14,0.03]
[1744585111089,57.30370932,127.15,127.14,0.03]
[1744585111290,64.02189403,127.15,127.14,0.03]
[1744585113891,0.42648471,127.14,127.07,8.2148]
[1744585114187,12.65406046,127.11,127.07,8.2148]
[1744585114392,31.73019403,127.08,127.07,0.03]
[1744585114566,0.42648471,127.06,127.01,8.1848]
[1744585114761,95.55406046,127.07,127.02,12.65406046]
[1744585114993,82.9,127.07,127.03,12.65406046]
[1744585115175,89.196,127.07,127.03,12.65406046]
[1744585115565,12.65406046,127.06,127.01,27.13746046]
[1744585115763,12.65406046,127.06,127.01,20.83886046]
[1744585115992,19.07613357,127.06,127.01,1.5383]
[1744585116294,12.65406046,127.03,126.98,19.30056046]
[1744585117183,18.95176046,127.03,126.98,25.60036046]
[1744585117790,20.31406046,127.05,127.0,12.65406046]
[1744585118469,7.66,127.05,127.01,12.65406046]
[1744585118881,12.65406046,127.04,126.99,12.65406046]
[1744585119494,13.08054517,127.04,126.99,18.95346046]
[1744585120374,19.37814517,127.04,126.99,12.65406046]
[1744585120574,12.65406046,127.03,126.98,25.60056046]
[1744585120983,12.65406046,127.04,126.99,12.65406046]
[1744585121179,26.61096046,127.05,127.0,12.65406046]
[1744585121390,12.65406046,127.04,126.99,12.65406046]
[1744585121771,12.65406046,127.02,126.98,6.6465]
[1744585122500,12.65406046,127.02,126.98,12.9466]
[1744585122678,19.37834517,127.03,126.98,25.60066046]
[1744585122878,27.05834517,127.03,126.98,25.60066046]
[1744585123668,20.33406046,127.03,126.98,25.60066046]
[1744585123873,26.63176046,127.03,126.98,25.60066046]
[1744585125471,26.63176046,127.03,126.98,18.95416046]
[1744585125975,18.95236046,127.02,126.97,20.49286046]
[1744585126272,12.65406046,126.99,126.95,6.3015]
[1744585126484,12.65406046,126.99,126.94,14.19236046]
[1744585126687,12.65406046,126.97,126.92,6.6465]
[1744585126902,12.65406046,126.97,126.92,19.30056046]
[1744585127474,12.65406046,126.97,126.93,6.3024]
[1744585127894,13.08054517,126.96,126.92,6.303]
[1744585128401,7.68,126.98,126.94,12.65406046]
[1744585128984,13.08054517,126.97,126.92,18.95706046]
[1744585130380,12.65406046,126.94,126.9,6.3041]
[1744585130587,12.65406046,126.94,126.89,18.88746046]
[1744585130905,12.65406046,126.93,126.88,14.19956046]
[1744585131195,20.33406046,126.93,126.88,1.5455]
[1744585131505,20.33406046,126.93,126.89,6.3045]
[1744585132189,7.68,126.93,126.9,12.65406046]
[1744585132698,20.33406046,126.93,126.89,6.3045]
[1744585134499,12.65406046,126.92,126.88,6.3349]
[1744585135598,13.08054517,126.91,126.88,0.03]
[1744585135805,12.65406046,126.92,126.88,0.03]
[1744585136193,7.68,126.93,126.89,12.65406046]
[1744585137301,22.0967,126.98,126.89,12.65406046]
[1744585137302,89.2461,126.98,126.92,12.65406046]
[1744585137495,7.68,126.98,126.95,12.65406046]
[1744585138996,20.33406046,127.02,126.97,12.65406046]
[1744585139500,26.63226046,127.02,126.97,12.65406046]
[1744585139691,12.65406046,127.01,126.97,6.3003]
[1744585140403,12.79622203,127.0,126.96,6.3009]
[1744585141308,12.65406046,126.99,126.96,6.3009]
[1744585141507,13.08054517,127.0,126.95,6.3016]
[1744585141803,13.08054517,127.0,126.95,18.95566046]
[1744585142010,7.68,127.02,126.98,12.65406046]
[1744585142185,90.58,127.06,127.01,12.65406046]
[1744585142386,103.23406046,127.06,127.01,12.65406046]
[1744585142708,103.23406046,127.06,126.98,1.595]
[1744585142709,12.65406046,127.05,127.0,12.65406046]
[1744585142897,12.65406046,127.04,126.99,12.65406046]
[1744585143484,12.65406046,127.04,127.0,6.2992]
[1744585144210,24.98884886,127.08,127.02,12.65406046]